bitfinex/quotes_ETHUSD_20210701
["timestamp","ask_amount","ask_price","bid_price","bid_amount"]
[1625160268355,5.13469208,2090.4,2089.6,0.02060411]
[1625160268452,23.15,2090.3,2089.6,0.02060411]
[1625160268609,7.17777,2090.0,2089.6,4.11e-06]
[1625160268760,7.17777,2090.0,2089.1,8.834e-05]
[1625160268761,15.06443329,2089.9,2089.1,8.834e-05]
[1625160268895,18.68023329,2089.9,2089.1,8.834e-05]
[1625160268976,23.69023329,2089.9,2089.1,8.834e-05]
[1625160269228,3.59012,2089.6,2089.1,8.834e-05]
[1625160269326,15.0,2089.5,2089.1,8.834e-05]
[1625160269575,20.16,2089.5,2089.1,8.834e-05]
[1625160269974,23.7500785,2089.5,2089.1,8.834e-05]
[1625160270076,7.18048,2089.3,2089.1,8.834e-05]
[1625160270173,25.81388,2089.3,2089.1,8.834e-05]
[1625160270277,30.82388,2089.3,2089.1,8.834e-05]
[1625160270638,22.78,2089.2,2089.1,8.834e-05]
[1625160270727,0.08,2089.2,2089.1,8.834e-05]
[1625160270828,2.25544753,2089.2,2089.1,8.834e-05]
[1625160270925,31.78798,2089.3,2089.1,8.834e-05]
[1625160271235,8.38,2089.2,2089.1,8.834e-05]
[1625160271334,0.08,2089.2,2089.1,8.834e-05]
[1625160273226,31.78798,2089.3,2089.1,8.834e-05]
[1625160273719,16.78798,2089.3,2089.1,8.834e-05]
[1625160273877,3.6334,2089.3,2089.1,8.834e-05]
[1625160274028,10.0983,2089.9,2089.1,8.834e-05]
[1625160274377,7.17834,2089.7,2089.1,8.834e-05]
[1625160274977,15.04,2089.6,2089.1,8.834e-05]
[1625160275136,15.19,2089.6,2089.1,8.834e-05]
[1625160275222,23.19,2089.6,2089.1,8.834e-05]
[1625160275375,28.2,2089.6,2089.1,8.834e-05]
[1625160275572,0.08,2089.5,2089.1,8.834e-05]
[1625160275714,0.15,2089.4,2089.1,8.834e-05]
[1625160275816,3.3782,2089.4,2089.1,8.834e-05]
[1625160275918,15.0,2089.3,2089.1,8.834e-05]
[1625160276020,5.01,2089.3,2089.1,8.834e-05]
[1625160276270,18.4855,2089.4,2089.1,8.834e-05]
[1625160276367,0.08,2089.2,2089.1,8.834e-05]
[1625160276967,1.0814,2089.3,2089.1,8.834e-05]
[1625160277317,6.35,2089.2,2089.1,8.834e-05]
[1625160277421,8.26151,2089.3,2089.1,8.834e-05]
[1625160277517,5.01,2089.2,2089.1,8.834e-05]
[1625160277717,13.27151,2089.3,2089.1,8.834e-05]
[1625160278274,17.55,2089.2,2088.9,0.49555734]
[1625160278372,13.27151,2089.3,2088.9,0.49555734]
[1625160278474,6.0914,2089.3,2088.9,0.49555734]
[1625160278575,1.0814,2089.3,2088.9,0.49555734]
[1625160278725,6.0914,2089.3,2088.9,0.49555734]
[1625160278823,5.4755,2089.4,2088.9,0.49555734]
[1625160278923,5.01,2089.3,2088.9,0.49555734]
[1625160279128,9.1937,2089.4,2088.9,0.49555734]
[1625160279223,0.02393375,2089.2,2088.9,0.49555734]
[1625160282272,3.89143375,2089.2,2088.9,0.49555734]
[1625160283525,3.89143375,2089.2,2089.0,0.15]
[1625160283676,3.89143375,2089.2,2089.0,0.21]
[1625160283924,3.89143375,2089.2,2089.0,0.15]
[1625160284420,3.79143375,2089.2,2089.0,0.15]
[1625160285028,1.8907,2089.3,2089.1,29.1]
[1625160285131,0.8447,2089.3,2089.1,29.1]
[1625160285277,0.02288834,2089.6,2089.2,0.15]
[1625160286127,7.19736411,2090.1,2089.2,0.15]
[1625160286327,12.20736411,2090.1,2089.2,0.15]
[1625160286429,7.19736411,2090.1,2089.2,0.15]
[1625160286526,12.20736411,2090.1,2089.2,0.15]
[1625160287405,12.20736411,2090.1,2089.3,7.1762]
[1625160287617,12.20736411,2090.1,2089.3,0.15]
[1625160288257,7.19736411,2090.1,2089.4,0.06]
[1625160289345,0.02060411,2090.1,2089.4,0.06]
[1625160289543,0.02060411,2090.1,2089.5,0.23]
[1625160289745,0.02060411,2090.1,2089.5,7.32548]
[1625160289992,0.02060411,2090.1,2089.5,0.15]
[1625160290492,0.04452984,2090.1,2089.5,0.15]
[1625160291396,0.04452984,2090.1,2089.6,24.4]
[1625160291397,7.17628,2090.1,2089.6,24.4]
[1625160291543,12.18628,2090.1,2089.3,7.17604]
[1625160291693,12.18628,2090.1,2089.6,0.15]
[1625160292349,12.18628,2090.1,2089.6,0.17060411]
[1625160292943,15.55,2090.0,2089.3,7.04664411]
[1625160293047,5.01,2090.0,2089.4,0.15]
[1625160293196,12.18655,2090.0,2089.4,0.15]
[1625160293294,7.17655,2090.0,2089.4,0.15]
[1625160293394,12.18655,2090.0,2089.4,0.15]
[1625160294595,7.17655,2090.0,2089.4,0.15]
[1625160294796,3.35500411,2090.1,2089.4,0.15]
[1625160295698,0.02060411,2090.1,2089.4,0.15]
[1625160295801,0.02060411,2090.1,2089.5,0.12]
[1625160296013,0.02060411,2090.1,2089.6,7.17545]
[1625160296256,0.02060411,2090.1,2089.7,0.15]
[1625160296760,0.01841824,2090.6,2089.8,29.1]
[1625160296954,0.01841824,2090.6,2089.9,0.35]
[1625160297056,0.01841824,2090.6,2090.2,7.1728]
[1625160297154,0.01841824,2090.6,2090.2,11.2727]
[1625160297255,0.01841824,2090.6,2090.3,0.15]
[1625160297456,0.01634923,2091.1,2090.4,29.3]
[1625160297611,0.01634923,2091.1,2090.4,40.20764224]
[1625160297707,0.01634923,2091.1,2090.9,4.0]
[1625160297816,0.01634923,2091.1,2090.9,7.0645]
[1625160297908,0.01634923,2091.1,2091.0,29.45]
[1625160298108,0.01441124,2091.6,2091.0,29.45]
[1625160298264,0.01441124,2091.6,2091.1,29.1]
[1625160298459,0.01441124,2091.6,2091.2,0.15]
[1625160299311,0.01441124,2091.6,2091.3,7.16885]
[1625160299463,0.01441124,2091.6,2091.2,9.70803]
[1625160299464,0.01441124,2091.6,2091.2,9.55803]
[1625160299562,0.01441124,2091.6,2091.4,0.15]
[1625160299815,0.01441124,2091.6,2091.1,0.2]
[1625160299918,0.01441124,2091.6,2091.1,0.15]
[1625160301353,0.03831867,2091.6,2091.1,0.15]
[1625160301969,0.03831867,2091.6,2091.2,0.06]
[1625160302168,0.03831867,2091.6,2091.0,0.15]
[1625160305410,0.03831867,2091.6,2091.0,7.31962]
[1625160305610,0.03831867,2091.6,2091.1,0.06]
[1625160306209,0.03831867,2091.6,2091.0,7.31962]
[1625160307061,0.03831867,2091.6,2091.0,0.15]
[1625160308407,0.03831867,2091.6,2091.0,7.31962]
[1625160308562,0.03831867,2091.6,2091.1,0.16]
[1625160309355,0.03831867,2091.6,2091.4,0.02583534]
[1625160314426,0.03831867,2091.6,2091.3,0.15]
[1625160314776,0.03831867,2091.6,2091.4,0.02583534]
[1625160317124,0.03831867,2091.6,2091.0,0.12583534]
[1625160317422,0.03831867,2091.6,2091.0,7.29607534]
[1625160317824,0.03831867,2091.6,2091.0,7.35607534]
[1625160318597,0.03831867,2091.6,2091.0,12.36607534]
[1625160318692,0.03831867,2091.6,2091.0,7.35607534]
[1625160318790,0.03831867,2091.6,2091.0,12.36607534]
[1625160318990,0.03831867,2091.6,2091.1,0.04]
[1625160319192,0.03831867,2091.6,2091.2,0.15]
[1625160320396,0.03831867,2091.6,2091.2,7.31967]
[1625160320494,0.03831867,2091.6,2091.2,12.32967]
[1625160320594,0.03831867,2091.6,2091.2,7.31967]
[1625160321228,0.03831867,2091.6,2091.3,0.08]
[1625160321476,0.03831867,2091.6,2091.3,0.23]
[1625160321676,0.03831867,2091.6,2091.3,0.15]
[1625160322482,0.03831867,2091.6,2091.3,11.89984]
[1625160324028,0.03831867,2091.6,2091.3,11.74984]
[1625160325081,0.03831867,2091.6,2091.3,4.5806]
[1625160325184,0.03831867,2091.6,2091.1,7.16987]
[1625160325438,0.03831867,2091.6,2090.9,9.55939]
[1625160325738,0.03831867,2091.6,2090.6,34.86430923]
[1625160325739,0.03831867,2091.6,2090.6,31.12991923]
[1625160325837,0.03831867,2091.6,2090.6,21.56984923]
[1625160326137,0.08255061,2091.6,2090.6,21.56984923]
[1625160326336,10.84017801,2091.6,2090.6,0.01634923]
[1625160326438,15.0,2091.5,2090.6,0.01634923]
[1625160326541,3.5,2091.1,2090.6,0.01634923]
[1625160326688,22.0068,2091.1,2090.6,0.01634923]
[1625160326788,35.0168,2091.1,2090.6,0.01634923]
[1625160326882,0.04,2091.0,2090.6,0.01634923]
[1625160327035,4.98143,2091.0,2090.6,0.01634923]
[1625160327186,19.98143,2091.0,2090.6,0.01634923]
[1625160327332,24.99143,2091.0,2090.6,0.01634923]
[1625160327437,7.17502,2090.8,2090.6,0.01634923]
[1625160327590,32.68811,2090.7,2090.1,0.01841824]
[1625160327692,18.79508952,2090.6,2090.1,0.01841824]
[1625160327938,23.8308,2090.6,2090.1,0.01841824]
[1625160328443,31.8308,2090.6,2090.1,0.01841824]
[1625160328595,7.17629,2090.4,2090.1,1.824e-05]
[1625160328740,15.0,2090.3,2090.1,1.824e-05]
[1625160328888,23.0,2090.3,2090.1,1.824e-05]
[1625160328990,29.1865,2090.3,2090.1,1.824e-05]
[1625160329340,26.01,2090.2,2090.1,1.824e-05]
[1625160329491,41.01,2090.2,2090.1,1.824e-05]
[1625160329595,63.19797,2090.2,2090.1,1.824e-05]
[1625160329689,65.5763527,2090.2,2090.1,1.824e-05]
[1625160329877,73.60027385,2090.2,2090.1,1.824e-05]
[1625160329956,76.0528739,2090.2,2090.1,1.824e-05]
[1625160330055,50.1028739,2090.2,2090.1,1.824e-05]
[1625160330258,40.1028739,2090.2,2090.1,1.824e-05]
[1625160330358,29.1,2090.1,2089.1,0.02288834]
[1625160330458,0.08923492,2090.0,2089.1,0.02288834]
[1625160330562,3.4,2089.6,2089.1,0.02288834]
[1625160330665,29.83337,2089.6,2089.1,0.02288834]
[1625160330764,0.08,2089.5,2089.1,0.02288834]
[1625160331261,27.90563266,2089.6,2089.2,5.35]
[1625160331360,27.90563266,2089.6,2089.1,0.02288834]
[1625160332155,7.18009,2089.3,2089.1,0.02288834]
[1625160332306,22.18009,2089.3,2089.1,0.02288834]
[1625160332405,12.19009,2089.3,2089.1,0.02288834]
[1625160332606,20.19009,2089.3,2089.1,0.02288834]
[1625160332707,12.19009,2089.3,2089.1,0.02288834]
[1625160333506,5.01,2089.3,2089.1,0.02288834]
[1625160333756,14.58345,2089.5,2089.1,0.02288834]
[1625160334404,7.17952,2089.4,2089.1,0.02288834]
[1625160334652,12.18952,2089.4,2089.1,0.02288834]
[1625160334753,7.89563266,2089.6,2089.1,0.02288834]
[1625160334857,7.6542,2089.6,2089.1,0.02288834]
[1625160335004,1.3033,2089.7,2089.1,0.02288834]
[1625160335122,14.6465,2090.0,2089.1,0.02288834]
[1625160335208,10.4465,2090.0,2089.1,4.29778834]
[1625160335358,4.12060411,2090.1,2089.1,4.29778834]
[1625160335452,0.02060411,2090.1,2089.2,0.12]
[1625160335615,0.02060411,2090.1,2089.1,0.02288834]
[1625160335708,3.17130411,2090.1,2089.1,0.02288834]
[1625160336057,15.0,2090.0,2089.1,8.834e-05]
[1625160336259,2.4,2089.4,2089.1,8.834e-05]
[1625160336356,15.0,2089.3,2089.1,8.834e-05]
[1625160336459,18.5082,2089.3,2089.1,8.834e-05]
[1625160336707,26.5082,2089.3,2089.1,8.834e-05]
[1625160336806,31.5182,2089.3,2089.1,8.834e-05]
[1625160337104,23.5182,2089.3,2089.1,8.834e-05]
[1625160337203,31.5182,2089.3,2089.1,8.834e-05]
[1625160337508,38.69952,2089.3,2089.1,8.834e-05]
[1625160337654,30.69952,2089.3,2089.1,8.834e-05]
[1625160337756,38.69952,2089.3,2089.1,8.834e-05]
[1625160337957,30.69952,2089.3,2089.1,8.834e-05]
[1625160338257,38.69952,2089.3,2089.1,8.834e-05]
[1625160339349,23.69952,2089.3,2089.1,8.834e-05]
[1625160339452,15.69952,2089.3,2089.1,8.834e-05]
[1625160339802,31.5182,2089.3,2089.1,8.834e-05]
[1625160339901,38.69952,2089.3,2089.1,8.834e-05]
[1625160340405,29.05,2089.2,2088.6,0.02524816]
[1625160340505,15.0,2089.1,2088.6,0.02524816]
[1625160340608,23.0,2089.1,2088.6,0.02524816]
[1625160340704,28.01,2089.1,2088.6,0.02524816]
[1625160341316,29.51,2089.1,2088.6,0.02524816]
[1625160341421,7.18137,2088.9,2088.6,0.02524816]
[1625160341518,27.19137,2088.9,2088.6,0.02524816]
[1625160341716,35.19137,2088.9,2088.6,0.02524816]
[1625160341919,20.19137,2088.9,2088.6,0.02524816]
[1625160342269,7.18137,2088.9,2088.6,0.02524816]
[1625160342369,20.19137,2088.9,2088.6,0.02524816]
[1625160343021,35.19137,2088.9,2088.6,0.02524816]
[1625160343470,28.01,2088.9,2088.6,0.02524816]
[1625160343623,35.19137,2088.9,2088.6,0.02524816]
[1625160344275,0.15,2088.8,2088.6,0.02524816]
[1625160344371,3.2412,2088.8,2088.6,0.02524816]
[1625160344472,39.2,2088.7,2088.6,0.02524816]
[1625160344569,20.01,2088.7,2088.6,0.02524816]
[1625160344672,28.01,2088.7,2088.6,0.02524816]
[1625160344920,28.01,2088.7,2087.4,10.5447]
[1625160345123,7.1847,2088.1,2087.4,10.5447]
[1625160345223,7.1847,2088.1,2087.2,10.7171]
[1625160345224,10.7258,2088.1,2087.2,10.7171]
[1625160345323,15.7358,2088.1,2087.2,10.7171]
[1625160345425,15.7358,2088.1,2087.1,10.6451]
[1625160345616,15.7358,2088.1,2087.3,0.08]
[1625160345669,12.89942169,2088.1,2087.3,0.08]
[1625160345772,12.89942169,2088.1,2086.7,0.02383823]
[1625160345925,0.08491126,2088.0,2086.6,20.7287]
[1625160346020,0.08491126,2088.0,2086.6,25.71253823]
[1625160346420,0.08491126,2088.0,2086.9,7.18369]
[1625160346523,0.08491126,2088.0,2086.9,5.01]
[1625160346626,0.0671507,2088.3,2087.0,0.2]
[1625160346720,32.3731,2088.4,2087.0,0.2]
[1625160346820,32.3731,2088.4,2087.0,0.15]
[1625160347051,22.0978,2088.4,2087.0,4.93557652]
[1625160347206,10.9705,2088.4,2087.0,4.93557652]
[1625160347308,10.9705,2088.4,2087.0,9.94557652]
[1625160347507,18.15379,2088.4,2087.0,9.94557652]
[1625160347658,18.15379,2088.4,2087.0,4.96]
[1625160347659,15.0,2088.3,2087.0,4.96]
[1625160347911,15.0,2088.3,2086.9,9.57758]
[1625160348006,15.0,2088.3,2087.0,6.179]
[1625160348157,15.0,2088.3,2086.9,9.57758]
[1625160348407,28.01,2088.3,2086.9,9.57758]
[1625160348607,5.01,2088.3,2086.9,9.57758]
[1625160348709,5.01,2088.3,2086.9,12.01618107]
[1625160348710,28.01,2088.3,2086.9,12.01618107]
[1625160348808,23.0,2088.3,2086.9,12.01618107]
[1625160348907,28.01,2088.3,2086.9,12.01618107]
[1625160349111,28.01,2088.3,2086.9,17.02618107]
[1625160349462,7.1837,2088.2,2087.0,7.18346]
[1625160349562,12.1937,2088.2,2087.0,12.19346]
[1625160349864,7.1837,2088.2,2087.0,12.19346]
[1625160350011,12.1937,2088.2,2087.1,0.1]
[1625160350142,7.1837,2088.2,2087.1,0.1]
[1625160350242,7.1837,2088.2,2087.0,12.19346]
[1625160350243,12.1937,2088.2,2087.0,12.19346]
[1625160350392,12.1937,2088.2,2087.0,5.01]
[1625160350593,12.1937,2088.2,2086.9,17.02618107]
[1625160350944,27.1937,2088.2,2086.9,17.02618107]
[1625160351445,12.1937,2088.2,2086.9,17.02618107]
[1625160351646,12.21765094,2088.2,2086.9,17.02618107]
[1625160351746,7.20765094,2088.2,2087.0,0.08]
[1625160351895,12.21765094,2088.2,2087.0,0.08]
[1625160352151,12.21765094,2088.2,2087.0,8.94559287]
[1625160352152,0.02395094,2088.2,2087.0,8.94559287]
[1625160352403,0.02395094,2088.2,2087.1,0.06]
[1625160352553,0.02395094,2088.2,2087.1,0.07628403]
[1625160352705,0.02395094,2088.2,2087.6,10.31872]
[1625160352950,0.02395094,2088.2,2087.6,15.32872]
[1625160353050,0.02395094,2088.2,2087.7,2.42011742]
[1625160353908,0.02395094,2088.2,2087.8,0.15]
[1625160354000,0.02395094,2088.2,2087.8,7.33049]
[1625160354101,0.02395094,2088.2,2087.9,0.2]
[1625160354200,0.02395094,2088.2,2087.9,2.62011742]
[1625160354350,0.02395094,2088.2,2088.0,0.15]
[1625160354500,0.02395094,2088.2,2088.1,28.02]
[1625160354669,0.02395094,2088.2,2088.1,0.12]
[1625160354822,0.02395094,2088.2,2088.1,0.27]
[1625160354921,0.02395094,2088.2,2087.9,1.3069]
[1625160355823,4.51245094,2088.2,2087.3,10.8855]
[1625160356025,9.52245094,2088.2,2087.3,10.8855]
[1625160356526,41.70540094,2088.2,2086.9,7.18369]
[1625160356630,41.70540094,2088.2,2086.6,10.6627]
[1625160356631,5.0,2088.1,2086.6,21.3778]
[1625160356779,0.06495322,2087.9,2086.6,10.7151]
[1625160356896,0.06495322,2087.9,2086.5,10.81151544]
[1625160356992,10.06495322,2087.9,2086.5,10.81151544]
[1625160357142,0.08672325,2087.7,2086.5,10.81151544]
[1625160357297,7.64245015,2087.7,2086.5,10.81151544]
[1625160357445,0.04176344,2087.5,2086.5,10.81151544]
[1625160357645,7.18797,2087.0,2086.5,10.81151544]
[1625160357745,11.53107,2087.0,2086.5,0.02221544]
[1625160358097,16.54107,2087.0,2086.5,0.02221544]
[1625160358495,11.53107,2087.0,2086.5,0.02221544]
[1625160358749,3.2522,2087.1,2086.5,0.02221544]
[1625160358846,0.9282,2087.1,2086.5,0.02221544]
[1625160358951,5.9382,2087.1,2086.5,0.02221544]
[1625160359047,0.9282,2087.1,2086.5,0.02221544]
[1625160359187,5.9782,2087.1,2086.5,0.02221544]
[1625160359336,0.9682,2087.1,2086.5,0.02221544]
[1625160359445,5.9782,2087.1,2086.5,0.02221544]
[1625160359635,15.0,2087.0,2086.5,0.02221544]
[1625160359739,7.18857,2086.8,2086.5,0.02221544]
[1625160360741,4.35093331,2086.8,2086.5,0.02221544]
[1625160362706,4.37489458,2086.8,2086.5,0.02221544]
[1625160364297,9.38489458,2086.8,2086.5,0.02221544]
[1625160364497,24.38489458,2086.8,2086.5,0.02221544]
[1625160364596,9.38489458,2086.8,2086.5,0.02221544]
[1625160365096,12.78699458,2086.8,2086.5,0.02221544]
[1625160365595,7.77699458,2086.8,2086.5,0.02221544]
[1625160366400,0.02396127,2086.8,2086.5,0.02221544]
[1625160366598,0.02396127,2086.8,2086.5,4.90871544]
[1625160366848,1.27e-06,2086.8,2086.5,12.63020657]
[1625160366949,1.27e-06,2086.8,2086.5,10.26061952]
[1625160367049,1.27e-06,2086.8,2086.6,0.1]
[1625160367552,1.27e-06,2086.8,2086.7,7.1846]
[1625160367809,1.27e-06,2086.8,2086.7,12.3946]
[1625160367953,29.6148937,2088.7,2086.7,27.00687079]
[1625160368056,55.3003937,2088.7,2086.8,0.19971889]
[1625160368237,61.8428937,2088.7,2086.9,3.74089]
[1625160368332,61.8428937,2088.7,2087.0,3.6201]
[1625160368538,61.8428937,2088.7,2087.1,0.15]
[1625160368634,7.1835,2088.1,2087.2,7.18319]
[1625160368835,9.57758,2088.4,2087.2,12.19319]
[1625160368933,36.8003937,2088.7,2087.2,12.19319]
[1625160369083,21.7253237,2088.7,2087.3,2.71149113]
[1625160369184,10.6918237,2088.7,2087.3,2.82371099]
[1625160369285,10.6918237,2088.7,2087.4,0.15]
[1625160369937,17.8727737,2088.7,2087.6,7.18118]
[1625160370040,7.1872737,2088.7,2087.6,5.01]
[1625160370238,7.1872737,2088.7,2087.6,4.9858]
[1625160370489,7.1872737,2088.7,2087.7,0.06]
[1625160370924,0.0063237,2088.7,2087.7,0.06]
[1625160371025,7.18197,2088.4,2087.6,7.72149113]
[1625160371573,7.18197,2088.4,2087.6,5.01]
[1625160371774,7.18197,2088.4,2087.4,0.15]
[1625160372479,15.69977,2088.4,2087.4,0.15]
[1625160372582,30.69977,2088.4,2087.4,0.15]
[1625160372707,30.69977,2088.4,2087.0,14.5857]
[1625160372855,30.69977,2088.4,2087.0,5.01]
[1625160373007,15.69977,2088.4,2087.1,2.71149113]
[1625160373105,10.68977,2088.4,2087.1,2.98149113]
[1625160373206,10.68977,2088.4,2087.1,7.99149113]
[1625160373452,0.0239498,2088.3,2087.1,7.99149113]
[1625160373553,7.2064898,2088.3,2087.4,7.182]
[1625160373806,7.2064898,2088.3,2087.4,12.192]
[1625160374504,7.2064898,2088.3,2087.4,5.01]
[1625160374604,22.2064898,2088.3,2087.4,5.01]
[1625160374703,22.2064898,2088.3,2087.1,17.44749113]
[1625160374804,25.2566898,2088.3,2087.2,5.01]
[1625160374990,33.2566898,2088.3,2087.1,7.87149113]
[1625160375069,31.0841498,2088.3,2087.1,7.72149113]
[1625160375471,23.0841498,2088.3,2087.1,7.72149113]
[1625160375921,23.0841498,2088.3,2087.1,7.87149113]
[1625160376021,20.0339498,2088.3,2087.1,7.87149113]
[1625160376471,7.18325,2088.1,2087.1,15.05465113]
[1625160376775,20.0339498,2088.3,2087.1,7.87149113]
[1625160377576,5.0339498,2088.3,2087.1,7.87149113]
[1625160377774,0.0239498,2088.3,2087.2,0.2]
[1625160377922,5.0339498,2088.3,2087.2,0.2]
[1625160378029,7.18325,2088.1,2087.2,7.38303]
[1625160378272,7.18325,2088.1,2087.3,0.14]
[1625160378528,5.0339498,2088.3,2087.3,0.14]
[1625160378529,0.0239498,2088.3,2087.3,0.14]
[1625160378682,0.0239498,2088.3,2087.4,4.3494]
[1625160378875,0.0239498,2088.3,2087.5,2.90594983]
[1625160378975,0.0239498,2088.3,2087.7,3.3]
[1625160379126,0.0239498,2088.3,2088.0,7.17985]
[1625160379226,0.0239498,2088.3,2088.0,10.43085]
[1625160379373,0.0239498,2088.3,2088.1,0.2]
[1625160380034,1.5,2089.1,2088.2,29.1]
[1625160380286,1.5,2089.1,2088.2,34.11]
[1625160380488,1.5,2089.1,2088.3,2.70594983]
[1625160380588,1.5,2089.1,2088.3,7.71594983]
[1625160381034,1.5,2089.1,2088.4,0.1]
[1625160381337,1.5,2089.1,2088.4,7.27843]
[1625160381725,1.5,2089.1,2088.4,12.28843]
[1625160381874,1.5,2089.1,2088.4,7.27843]
[1625160381974,1.5,2089.1,2088.4,12.28843]
[1625160382174,1.5,2089.1,2088.5,0.04]
[1625160382676,1.5,2089.1,2088.5,3.3418]
[1625160385327,0.02393776,2089.0,2088.5,3.3418]
[1625160386254,0.02393776,2089.0,2088.4,1.5449]
[1625160386500,10.71380776,2089.0,2087.7,14.1692]
[1625160386598,25.71380776,2089.0,2087.6,10.6813]
[1625160386697,30.72380776,2089.0,2087.6,10.6813]
[1625160387044,0.03865409,2088.9,2087.6,10.6813]
[1625160387251,3.5909627,2088.9,2087.6,10.6813]
[1625160387348,15.0,2088.8,2087.6,10.6813]
[1625160387552,20.01,2088.8,2087.6,10.6813]
[1625160387652,5.01,2088.8,2087.6,10.6813]
[1625160387753,5.01,2088.8,2087.4,21.2562]
[1625160387851,0.03635212,2088.9,2087.7,2.80594983]
[1625160388002,0.04497735,2088.9,2087.7,2.80594983]
[1625160388098,23.54393776,2089.0,2087.7,2.70594983]
[1625160388197,0.04608721,2088.9,2087.7,2.70594983]
[1625160389039,31.54393776,2089.0,2087.7,2.70594983]
[1625160389040,7.18145,2088.5,2087.7,2.70594983]
[1625160389132,9.57502,2088.8,2087.7,2.70594983]
[1625160389234,14.58502,2088.8,2087.7,2.70594983]
[1625160389336,14.58502,2088.8,2087.8,0.06]
[1625160389491,5.01,2088.8,2087.8,0.06]
[1625160389685,0.02393776,2089.0,2087.8,2.76594983]
[1625160389885,0.02393776,2089.0,2087.8,2.70594983]
[1625160390189,0.02393776,2089.0,2087.8,13.91781983]
[1625160390287,0.02393776,2089.0,2087.8,18.92781983]
[1625160390387,0.02393776,2089.0,2087.9,0.18]
[1625160390773,0.02393776,2089.0,2087.9,2.88040969]
[1625160390976,0.02393776,2089.0,2087.9,7.89040969]
[1625160391226,0.02393776,2089.0,2088.0,0.08]
[1625160391824,7.20399776,2089.0,2088.0,0.08]
[1625160392201,7.20399776,2089.0,2087.9,7.71040969]
[1625160392549,12.21399776,2089.0,2087.9,7.71040969]
[1625160392650,7.20399776,2089.0,2087.9,7.71040969]
[1625160392749,12.21399776,2089.0,2087.9,7.71040969]
[1625160393058,7.20399776,2089.0,2087.9,7.71040969]
[1625160394307,12.21399776,2089.0,2087.9,7.71040969]
[1625160394411,7.20399776,2089.0,2088.0,0.08]
[1625160394508,12.21399776,2089.0,2088.0,0.08]
[1625160394610,7.20399776,2089.0,2088.0,0.08]
[1625160394760,12.21399776,2089.0,2087.6,14.58413]
[1625160394861,7.20399776,2089.0,2087.6,14.58413]
[1625160394961,12.21399776,2089.0,2087.6,14.58413]
[1625160395061,12.21399776,2089.0,2087.7,0.04]
[1625160395295,27.21399776,2089.0,2087.6,22.58413]
[1625160395394,27.21399776,2089.0,2087.6,9.57413]
[1625160395593,12.21399776,2089.0,2087.6,9.57413]
[1625160395947,27.21399776,2089.0,2087.6,9.57413]
[1625160396648,27.21399776,2089.0,2087.2,12.75643978]
[1625160396750,0.04663272,2088.9,2087.2,12.75643978]
[1625160396997,20.03393776,2089.0,2087.2,12.75643978]
[1625160397201,20.03393776,2089.0,2087.4,0.1]
[1625160397398,5.03393776,2089.0,2087.4,0.1]
[1625160397539,3.5910605,2088.9,2087.7,7.18127]
[1625160397737,3.5910605,2088.9,2087.8,0.06]
[1625160398042,5.03393776,2089.0,2087.8,0.06]
[1625160398191,5.03393776,2089.0,2087.9,2.62883978]
[1625160398289,0.02393776,2089.0,2087.9,2.62883978]
[1625160398438,5.03393776,2089.0,2087.9,7.63883978]
[1625160398539,7.18002,2088.9,2088.1,7.1802]
[1625160398787,7.18002,2088.9,2088.1,12.1902]
[1625160399589,7.18002,2088.9,2088.1,5.01]
[1625160399693,7.18002,2088.9,2087.9,12.10207978]
[1625160399891,7.18002,2088.9,2087.9,17.11207978]
[1625160400141,7.18002,2088.9,2088.0,0.12]
[1625160401391,7.18002,2088.9,2088.0,7.30051]
[1625160401494,7.18002,2088.9,2088.0,12.31051]
[1625160401694,7.18002,2088.9,2088.1,0.08]
[1625160403487,7.18002,2088.9,2088.1,7.2602]
[1625160403588,7.18002,2088.9,2088.1,12.2702]
[1625160403989,7.18002,2088.9,2088.2,0.04]
[1625160404606,0.02393776,2089.0,2088.2,7.17979]
[1625160404759,0.02393776,2089.0,2088.3,2.72394811]
[1625160405008,0.02393776,2089.0,2088.3,7.73394811]
[1625160405104,0.02393776,2089.0,2088.3,2.72394811]
[1625160405203,0.02393776,2089.0,2088.4,0.16]
[1625160405408,0.02393776,2089.0,2088.5,0.15]
[1625160405504,0.02393776,2089.0,2088.5,2.80890644]
[1625160405755,0.02393776,2089.0,2088.6,0.08]
[1625160405905,0.02393776,2089.0,2088.7,7.1772]
[1625160406007,0.02393776,2089.0,2088.7,11.6892]
[1625160406107,0.02393776,2089.0,2088.7,19.35810644]
[1625160406561,0.02393776,2089.0,2088.8,0.15]
[1625160406703,0.02393776,2089.0,2088.9,17.75]
[1625160406847,0.02393776,2089.0,2088.9,0.2]
[1625160406951,0.02393776,2089.0,2088.9,5.21]
[1625160407050,0.02393776,2089.0,2088.9,0.2]
[1625160407479,0.02393776,2089.0,2088.9,7.37661]
[1625160407583,1.5,2089.1,2089.0,21.55]
[1625160407681,1.5,2089.1,2088.9,12.38661]
[1625160407781,1.5,2089.1,2089.0,16.05]
[1625160407882,1.5,2089.1,2089.0,0.2]
[1625160409059,1.5,2089.1,2089.0,7.37694]
[1625160409359,1.5,2089.1,2089.0,10.03584644]
[1625160410206,26.0946,2090.0,2089.0,10.03584644]
[1625160410311,10.1836,2090.0,2089.3,7.17596]
[1625160410459,7.17596,2090.1,2089.3,11.60616]
[1625160410560,7.17596,2090.1,2089.4,0.04]
[1625160411068,7.17596,2090.1,2089.3,16.61616]
[1625160413311,16.9733,2090.5,2089.3,16.61616]
[1625160413628,5.01,2090.5,2089.3,9.4402]
[1625160413823,37.0455,2090.7,2089.3,9.4402]
[1625160413919,5.01,2090.6,2089.3,9.4402]
[1625160414020,52.0455,2090.7,2089.3,9.4402]
[1625160414319,3.5877975,2090.6,2089.3,9.4402]
[1625160414422,3.5877975,2090.6,2089.3,4.4302]
[1625160414520,23.5477975,2090.6,2089.3,4.4302]
[1625160414623,31.5477975,2090.6,2089.3,4.4302]
[1625160414971,23.5477975,2090.6,2089.3,4.4302]
[1625160415124,9.56826,2090.3,2089.3,7.17596]